bitfinex/quotes_ETHUSD_20250706
["timestamp","ask_amount","ask_price","bid_price","bid_amount"]
[1751810194356,8.965,2565.6,2565.5,0.1944]
[1751810195425,8.965,2565.6,2565.3,4.00936973]
[1751810196054,8.965,2565.6,2565.4,3.89792038]
[1751810196359,8.965,2565.6,2565.3,4.0093182]
[1751810196553,8.965,2565.6,2565.3,0.1111964]
[1751810197065,3.89796068,2565.5,2565.3,0.1111964]
[1751810197265,3.89802759,2565.4,2565.3,0.1111964]
[1751810197431,13.97306377,2565.6,2565.3,0.1111964]
[1751810197432,13.05718184,2565.6,2565.3,0.1111964]
[1751810197628,9.1594,2565.6,2565.3,0.1111964]
[1751810198032,0.1738,2565.6,2565.3,0.1111964]
[1751810198274,2.423,2565.6,2565.4,3.89794445]
[1751810198435,2.423,2565.6,2565.3,4.00935552]
[1751810198640,8.962,2565.5,2565.4,4.09242759]
[1751810198860,8.962,2565.5,2565.4,0.1944]
[1751810199037,8.962,2565.5,2565.4,4.09242759]
[1751810199245,8.962,2565.5,2565.4,0.1944]
[1751810199461,0.1944,2565.9,2565.5,3.89778761]
[1751810199669,11.384,2565.8,2565.5,3.89778761]
[1751810199851,11.384,2565.8,2565.4,4.09235079]
[1751810200159,11.384,2565.8,2565.4,4.09234931]
[1751810200364,11.384,2565.8,2565.4,0.1944]
[1751810200532,11.384,2565.8,2565.4,4.092425]
[1751810200935,11.384,2565.8,2565.3,0.1111964]
[1751810201131,0.1944,2565.6,2565.3,0.1111964]
[1751810201331,8.96,2565.5,2565.3,0.1111964]
[1751810202761,8.96,2565.5,2565.3,4.00928853]
[1751810203168,8.96,2565.5,2565.4,3.89802759]
[1751810203485,8.96,2565.5,2565.3,4.20369465]
[1751810203877,8.96,2565.5,2565.3,0.3055964]
[1751810204063,8.96,2565.5,2565.4,3.89802759]
[1751810204255,8.958,2565.5,2565.3,4.00927595]
[1751810204451,8.958,2565.5,2565.4,4.09234045]
[1751810204672,8.958,2565.5,2565.4,0.1944]
[1751810205084,8.958,2565.5,2565.4,4.09242759]
[1751810205288,4.09171508,2565.9,2565.4,4.09242759]
[1751810205456,2.423,2565.5,2565.4,4.09242759]
[1751810205785,11.38,2565.5,2565.4,4.09242759]
[1751810205974,11.38,2565.5,2565.4,0.1944]
[1751810206153,11.38,2565.5,2565.3,4.00928833]
[1751810206559,0.1944,2565.6,2565.3,0.1111964]
[1751810206761,11.38,2565.5,2565.3,4.00926666]
[1751810206956,11.38,2565.5,2565.3,0.1111964]
[1751810207357,11.5744,2565.5,2565.3,0.1111964]
[1751810207663,0.36462128,2565.4,2565.3,0.1111964]
[1751810208589,11.74362128,2565.4,2565.3,0.1111964]
[1751810209373,0.36462128,2565.4,2565.3,0.1111964]
[1751810209684,11.74262128,2565.4,2565.3,0.1111964]
[1751810209879,0.36462128,2565.4,2565.3,0.1111964]
[1751810210081,8.954,2565.4,2565.3,4.20377595]
[1751810210692,0.1944,2565.7,2565.4,3.89802759]
[1751810210892,0.36462753,2565.6,2565.3,0.3055964]
[1751810211063,8.953,2565.5,2565.3,0.3055964]
[1751810211387,8.953,2565.5,2565.3,4.20370258]
[1751810211758,0.1944,2565.7,2565.3,4.20370258]
[1751810211963,11.73967707,2565.6,2565.5,3.89779955]
[1751810212192,11.7396751,2565.6,2565.4,3.89795446]
[1751810212390,0.3646751,2565.5,2565.4,3.89795446]
[1751810212591,9.3166751,2565.5,2565.4,3.89795446]
[1751810213883,0.3646751,2565.5,2565.4,3.89795446]
[1751810214086,9.3156751,2565.5,2565.4,3.89795446]
[1751810214585,0.3646751,2565.5,2565.4,3.89795446]
[1751810214763,9.31506643,2565.5,2565.4,3.8979769]
[1751810215103,9.3150651,2565.5,2565.4,3.8979769]
[1751810215791,0.3650651,2565.5,2565.4,4.78768237]
[1751810215992,2.423,2566.1,2566.0,3.89704755]
[1751810216166,11.73712264,2566.1,2566.0,3.89704755]
[1751810216372,0.36512264,2566.1,2566.0,3.89704755]
[1751810216703,0.001,2566.5,2566.4,3.89650872]
[1751810217009,9.31408339,2566.5,2566.4,3.89650872]
[1751810218213,11.73477262,2566.5,2566.4,3.89650872]
[1751810218710,0.36577262,2566.5,2566.3,3.89660096]
[1751810218913,0.001,2566.5,2566.4,4.68560872]
[1751810219084,8.946,2566.5,2566.4,4.68560872]
[1751810219280,9.30901007,2566.5,2566.4,3.89650872]
[1751810219484,0.36461678,2566.5,2565.8,0.7891]
[1751810219684,2.7764906,2566.4,2566.3,3.89666056]
[1751810219893,2.412,2567.0,2566.4,3.89650872]
[1751810220097,9.30843413,2566.9,2566.8,3.89580455]
[1751810220297,9.30843413,2566.9,2566.7,3.89597728]
[1751810220493,3.8955481,2567.1,2566.5,3.89625187]
[1751810220719,13.25931897,2567.2,2566.0,0.7891]
[1751810220720,10.0,2566.9,2566.0,0.7891]
[1751810220888,10.0,2566.9,2565.5,3.2831935]
[1751810220889,3.89681532,2566.2,2565.6,0.7891]
[1751810221088,3.89681532,2566.2,2565.5,5.57285407]
[1751810221089,12.84005779,2566.1,2565.5,3.89779652]
[1751810221405,8.943,2566.1,2565.6,3.89764821]
[1751810221783,11.354,2566.0,2565.9,3.89724954]
[1751810221989,11.353,2566.0,2565.7,3.89747387]
[1751810222188,11.353,2566.0,2565.7,3.89745254]
[1751810222391,11.353,2566.0,2565.8,3.89741625]
[1751810222616,2.412,2566.1,2565.9,3.89722151]
[1751810222817,4.44651507,2566.4,2565.9,3.89722151]
[1751810223022,11.71741933,2566.3,2565.8,3.89735799]
[1751810223225,0.36441933,2566.2,2565.9,3.89723767]
[1751810223412,11.353,2566.3,2565.9,3.89723767]
[1751810223597,0.55,2566.4,2565.9,3.89723767]
[1751810223799,11.71639511,2566.3,2565.9,4.67671763]
[1751810224119,11.71639511,2566.3,2565.8,3.89732868]
[1751810224120,2.412,2566.3,2565.8,3.89732868]
[1751810224419,8.94,2566.2,2565.9,3.89722555]
[1751810224815,8.94,2566.2,2565.9,3.89719424]
[1751810225017,8.94,2566.2,2565.9,3.89714199]
[1751810225198,8.94,2566.2,2566.0,3.89709387]
[1751810225517,8.94,2566.2,2566.1,3.89696426]
[1751810225706,2.412,2566.3,2565.5,0.7781]
[1751810225889,8.938,2566.2,2565.9,3.89715197]
[1751810226091,8.938,2566.2,2565.6,4.45425677]
[1751810226289,8.938,2566.2,2565.9,3.89723461]
[1751810226491,8.938,2566.2,2565.7,3.89754747]
[1751810226492,0.55,2565.9,2565.3,0.1111964]
[1751810226716,0.1944,2565.7,2565.3,0.3055964]
[1751810226916,2.412,2565.6,2565.3,0.3055964]
[1751810227134,6.30976343,2565.6,2565.3,0.3055964]
[1751810227295,2.412,2565.6,2565.3,4.20369827]
[1751810227509,2.412,2565.6,2565.3,0.3055964]
[1751810227705,11.347,2565.5,2565.4,3.89787655]
[1751810228123,11.346,2565.5,2565.3,0.3055964]
[1751810228812,11.346,2565.5,2565.3,0.1111964]
[1751810229016,15.43841181,2565.5,2565.3,0.1111964]
[1751810229201,11.346,2565.5,2565.3,0.1111964]
[1751810229529,4.09242759,2565.4,2565.3,0.1111964]
[1751810229891,5.21996543,2565.4,2565.3,0.1111964]
[1751810230098,5.34193288,2565.4,2565.3,0.1111964]
[1751810230401,15.34193288,2565.4,2565.3,0.1111964]
[1751810231003,22.02580529,2565.4,2565.3,0.1111964]
[1751810231615,25.92383288,2565.4,2565.3,0.1111964]
[1751810232431,26.47383288,2565.4,2565.3,0.1111964]
[1751810233231,27.23693288,2565.4,2565.3,0.1111964]
[1751810233527,11.44390529,2565.4,2565.3,0.1111964]
[1751810233732,13.09280529,2565.4,2565.3,0.1111964]
[1751810233929,25.92183288,2565.4,2565.3,0.1111964]
[1751810234224,0.68080529,2565.4,2565.3,0.1111964]
[1751810234427,4.57883288,2565.4,2565.3,0.1111964]
[1751810234627,12.02280529,2565.4,2565.3,0.1111964]
[1751810234929,4.45686543,2565.4,2565.3,0.1111964]
[1751810235126,11.5364,2565.4,2565.3,0.1111964]
[1751810235429,0.55828933,2565.4,2565.3,0.1111964]
[1751810235629,11.5354,2565.4,2565.3,0.1111964]
[1751810236828,15.43342759,2565.4,2565.3,0.1111964]
[1751810237032,0.1944,2565.4,2565.3,4.00937595]
[1751810237214,11.339,2565.4,2565.3,4.00937595]
[1751810237415,11.339,2565.4,2565.3,0.1111964]
[1751810238034,11.5334,2565.4,2565.3,0.1111964]
[1751810238205,11.5334,2565.4,2565.3,0.02]
[1751810238698,13.07068841,2565.4,2565.3,0.02]
[1751810238904,11.5334,2565.4,2565.3,0.02]
[1751810239514,0.1944,2565.4,2565.3,0.02]
[1751810239728,15.42942759,2565.4,2565.3,0.02]
[1751810239923,2.6064,2565.4,2565.3,0.02]
[1751810240127,11.5314,2565.4,2565.3,0.02]
[1751810240812,2.412,2565.4,2565.3,0.02]
[1751810241014,0.1944,2565.6,2565.3,0.4275828]
[1751810241246,0.7631,2566.0,2565.5,3.89787464]
[1751810241247,0.1944,2565.7,2565.5,3.89787464]
[1751810241460,8.923,2565.6,2565.5,3.89787464]
[1751810241614,8.923,2565.6,2565.4,0.821]
[1751810242017,8.923,2565.6,2565.4,4.71900328]
[1751810242317,8.923,2565.6,2565.4,0.821]
[1751810242519,8.923,2565.6,2565.4,4.71900362]
[1751810242723,0.1944,2565.7,2565.6,3.89772372]
[1751810242724,2.412,2565.7,2565.6,3.89772372]
[1751810242914,0.1944,2565.9,2565.8,3.8974199]
[1751810243129,0.1944,2566.1,2565.9,3.89723057]
[1751810243322,8.921,2566.0,2565.9,3.89723057]
[1751810243541,8.921,2566.0,2565.8,0.0814068]
[1751810243745,13.89666937,2566.3,2565.8,0.0814068]
[1751810243746,0.8147,2566.7,2566.0,3.89711613]
[1751810243947,2.412,2566.2,2566.1,0.1944]
[1751810244111,11.332,2566.2,2566.1,0.1944]
[1751810244316,11.332,2566.2,2566.1,4.09122047]
[1751810244812,11.332,2566.2,2566.1,0.1944]
[1751810245143,11.5264,2566.2,2566.0,3.97845931]
[1751810245334,11.5264,2566.2,2566.0,0.0814068]
[1751810245739,15.22882322,2566.2,2566.0,0.0814068]
[1751810245939,11.332,2566.2,2566.0,0.0814068]
[1751810247549,8.915,2566.1,2566.0,3.97852293]
[1751810247846,9.1094,2566.1,2566.0,3.97852293]
[1751810248750,8.915,2566.1,2566.0,0.0814068]
[1751810249122,8.915,2566.1,2566.0,3.97852293]
[1751810249548,8.915,2566.1,2566.0,0.0814068]
[1751810250649,0.1944,2566.1,2566.0,0.0814068]
[1751810250867,9.1054,2566.1,2566.0,3.97852293]
[1751810251165,0.001,2566.5,2566.2,3.89667508]
[1751810251366,2.396,2566.5,2566.4,3.89650872]
[1751810251747,11.305,2566.5,2566.4,3.89650872]
[1751810252472,11.305,2566.5,2566.4,0.0052559]
[1751810252682,11.305,2566.5,2566.4,3.90176462]
[1751810252854,11.305,2566.5,2566.4,0.0052559]
[1751810253175,11.305,2566.5,2566.4,3.90176462]
[1751810253582,11.305,2566.5,2566.4,0.0052559]
[1751810253743,16.3512969,2566.5,2566.4,0.0052559]
[1751810253938,12.45494,2566.5,2566.4,0.0052559]
[1751810254143,17.51736771,2566.5,2566.4,0.0052559]
[1751810254373,28.06736771,2566.5,2566.4,0.0052559]
[1751810254705,28.18927941,2566.5,2566.4,0.0052559]
[1751810256059,16.88527941,2566.5,2566.4,0.0052559]
[1751810256255,16.77793941,2566.5,2566.4,0.0052559]
[1751810256493,26.48233941,2566.5,2566.4,0.0052559]
[1751810257195,10.48670546,2566.5,2566.4,0.0052559]
[1751810257398,21.78270546,2566.5,2566.4,0.0052559]
[1751810257566,25.67906236,2566.5,2566.4,0.0052559]
[1751810257983,26.22906236,2566.5,2566.4,0.0052559]
[1751810258157,27.03146236,2566.5,2566.4,0.0052559]
[1751810258805,5.24936426,2566.1,2566.0,0.0761509]
[1751810259095,3.897946,2565.5,2565.3,0.02]
[1751810259386,11.65783759,2565.4,2565.3,0.02]
[1751810259590,11.65683759,2565.4,2565.3,3.91817955]
[1751810259791,9.363,2565.6,2565.3,3.91817955]
[1751810259996,11.65682476,2565.5,2565.3,0.02]
[1751810260209,11.293,2565.5,2565.3,0.02]
[1751810261068,14.70042759,2565.4,2565.3,0.02]
[1751810261259,15.18625715,2565.4,2565.3,0.02]
[1751810261759,11.28822956,2565.4,2565.3,0.02]
[1751810261959,21.77682956,2565.4,2565.3,0.02]
[1751810262217,25.67485715,2565.4,2565.3,0.02]
[1751810262419,21.77682956,2565.4,2565.3,0.02]
[1751810262609,26.43525715,2565.4,2565.3,0.02]
[1751810263023,26.98525715,2565.4,2565.3,0.02]
[1751810263712,26.98530777,2565.4,2565.3,0.02]
[1751810265062,27.28361585,2565.4,2565.3,0.02]
[1751810265429,4.44833151,2565.2,2565.1,0.0761509]
[1751810265632,13.82621169,2565.2,2565.1,0.0761509]
[1751810266825,0.48588018,2565.2,2565.1,0.0761509]
[1751810267134,11.288,2565.2,2565.1,0.0761509]
[1751810267341,11.65191332,2565.2,2565.1,0.0761509]
[1751810267537,15.55024483,2565.2,2565.1,0.0761509]
[1751810267742,11.65191332,2565.2,2565.1,0.0761509]
[1751810267948,15.55024483,2565.2,2565.1,0.0761509]
[1751810268162,26.21922582,2565.2,2565.1,0.0761509]
[1751810268359,27.00882582,2565.2,2565.1,0.0761509]
[1751810269057,26.45782582,2565.2,2565.1,0.0761509]
[1751810269846,16.45782582,2565.2,2565.1,0.0761509]
[1751810270683,2.75991332,2565.2,2565.1,0.0761509]
[1751810270842,11.4764,2565.2,2565.1,0.0761509]
[1751810271286,22.62933992,2565.2,2565.1,0.0761509]
[1751810271437,10.0,2564.8,2564.2,0.0761509]
[1751810271637,15.66543602,2564.7,2564.2,0.0761509]
[1751810271872,0.36333992,2564.6,2564.2,0.0761509]
[1751810272185,11.28,2564.5,2564.2,0.0761509]
[1751810272360,8.884,2564.4,2564.2,0.0761509]
[1751810272980,15.08992822,2564.3,2564.2,0.0761509]
[1751810273365,15.76195525,2564.3,2564.2,0.0761509]
[1751810273881,15.27669972,2564.3,2564.2,0.0761509]
[1751810274180,27.03977937,2564.3,2564.2,0.0761509]
[1751810274380,26.48977937,2564.3,2564.2,0.0761509]
[1751810274555,26.48977507,2564.3,2564.2,0.0761509]
[1751810274887,26.48977423,2564.3,2564.2,0.0761509]
[1751810275051,10.3630455,2564.3,2564.2,0.0761509]
[1751810275258,26.09074522,2564.3,2564.2,0.0761509]
[1751810275647,25.54074522,2564.3,2564.2,0.0761509]
[1751810275947,10.3630455,2564.3,2564.2,0.0761509]
[1751810276177,11.6410455,2564.3,2564.2,0.0761509]
[1751810276478,11.278,2564.3,2564.2,0.0761509]
[1751810276684,15.17769972,2564.3,2564.2,0.0761509]
[1751810276845,11.276,2564.3,2564.2,0.0761509]
[1751810277038,15.17569972,2564.3,2564.2,0.0761509]
[1751810277243,11.276,2564.3,2564.2,0.0761509]
[1751810277670,2.396,2564.3,2564.2,0.0761509]
[1751810277867,15.17569972,2564.3,2564.2,0.0761509]
[1751810278274,15.72569972,2564.3,2564.2,0.0761509]
[1751810278887,11.276,2564.3,2564.2,0.0761509]
[1751810279097,16.08802692,2564.3,2564.2,0.0761509]
[1751810279304,26.08802692,2564.3,2564.2,0.0761509]
[1751810279595,26.97825553,2564.3,2564.2,0.0761509]
[1751810282976,16.95425553,2564.3,2564.2,0.0761509]
[1751810283152,26.95425553,2564.3,2564.2,0.0761509]
[1751810283364,26.95325553,2564.3,2564.2,0.0761509]
[1751810283652,15.15225553,2564.3,2564.2,0.0761509]
[1751810283857,25.63505553,2564.3,2564.2,0.0761509]
[1751810284150,25.63505777,2564.3,2564.2,0.0761509]
[1751810284359,25.63505777,2564.3,2564.2,0.0261509]
[1751810284554,3.90079402,2563.6,2563.3,0.2705509]
[1751810284748,11.4454,2563.5,2563.3,0.0761509]
[1751810284954,2.377,2563.4,2563.3,0.0761509]
[1751810285584,6.27806889,2563.4,2563.3,0.0761509]
[1751810286154,6.64104493,2563.4,2563.3,0.0761509]
[1751810286650,6.64104493,2563.4,2563.3,0.073255]
[1751810287257,3.28997604,2563.4,2563.3,0.073255]
[1751810287457,2.73997604,2563.4,2563.3,0.073255]
[1751810287884,4.26404493,2563.4,2563.3,0.073255]
[1751810288090,11.61197604,2563.4,2563.3,0.073255]
[1751810288286,15.5133495,2563.4,2563.3,0.073255]
[1751810288695,15.5123495,2563.4,2563.3,0.073255]
[1751810288989,16.18441549,2563.4,2563.3,0.073255]
[1751810289188,26.98191549,2563.4,2563.3,0.073255]
[1751810290054,15.73391549,2563.4,2563.3,0.073255]
[1751810290258,26.97991549,2563.4,2563.3,0.073255]
[1751810290985,26.97991549,2563.4,2563.3,0.075255]
[1751810291290,10.4853466,2563.4,2563.3,0.075255]
[1751810291588,21.7303466,2563.4,2563.3,3.97647608]
[1751810291890,0.36328061,2563.4,2563.3,4.17087608]
[1751810292083,0.1944,2563.8,2563.7,3.90061239]
[1751810292283,0.36309031,2563.8,2563.7,3.90061239]
[1751810292598,2.378,2564.0,2563.9,3.90030812]
[1751810292775,0.36309352,2564.0,2563.9,3.90030812]
[1751810292978,9.22709352,2564.0,2563.9,3.90030812]
[1751810293274,0.36309352,2564.0,2563.9,4.78149399]
[1751810293611,9.22709352,2564.0,2563.9,4.97589399]
[1751810294105,9.22609352,2564.0,2563.9,4.97589399]
[1751810294412,9.2262853,2564.0,2563.9,4.91140812]
[1751810294576,8.863,2564.0,2563.9,4.91140812]
[1751810294778,9.22628587,2564.0,2563.9,4.91140812]
[1751810295168,9.22628587,2564.0,2563.9,4.71700812]
[1751810295369,9.22628587,2564.0,2563.9,0.8167]
[1751810295594,9.22528587,2564.0,2563.9,0.8167]
[1751810295898,9.22528587,2564.0,2563.9,4.71700812]
[1751810296099,0.36328587,2564.0,2563.9,4.91140812]
[1751810296283,9.22328587,2564.0,2563.9,5.7584388]
[1751810296483,9.22328587,2564.0,2563.9,1.0111]
[1751810296786,9.22328587,2564.0,2563.9,3.90030812]
[1751810297189,0.48530844,2564.0,2563.9,3.90030812]
[1751810297405,9.22128587,2564.0,2563.9,3.90030812]
[1751810298468,9.22128587,2564.0,2563.8,4.09475558]
[1751810298677,0.36328587,2563.9,2563.8,3.90035558]
[1751810298894,0.36328587,2563.9,2563.7,4.09496459]
[1751810299100,9.22028587,2563.8,2563.7,4.09496459]
[1751810299298,9.22028587,2563.8,2563.6,4.71738812]
[1751810299505,0.36328587,2563.7,2563.6,0.8167]
[1751810300008,1.30475446,2563.7,2563.4,0.1944]
[1751810300211,0.36328587,2563.6,2563.3,4.75717227]
[1751810300408,9.21728587,2563.5,2563.3,0.855955]
[1751810300705,0.36328587,2563.4,2563.3,0.855955]
[1751810301705,0.36328587,2563.4,2563.3,0.075255]
[1751810302413,0.48532808,2563.4,2563.3,0.075255]
[1751810302582,1.2755479,2563.4,2563.3,0.075255]
[1751810302772,5.17661679,2563.4,2563.3,0.075255]
[1751810302976,1.27672189,2563.4,2563.3,0.075255]
[1751810303587,5.17779078,2563.4,2563.3,0.075255]
[1751810303810,1.27672189,2563.4,2563.3,0.075255]
[1751810305124,0.68090207,2563.4,2563.3,0.075255]
[1751810305404,9.33550207,2563.4,2563.3,4.75717608]
[1751810305573,9.33550207,2563.4,2563.3,0.855955]
[1751810305976,9.33544128,2563.4,2563.3,4.75717608]
[1751810306182,9.33544128,2563.4,2563.3,0.855955]
[1751810306388,9.33544257,2563.4,2563.3,0.075255]
[1751810306712,9.52986232,2563.4,2563.3,0.075255]
[1751810306921,13.43093121,2563.4,2563.3,0.075255]
[1751810307625,14.23083121,2563.4,2563.3,0.075255]
[1751810308614,1.48076232,2563.4,2563.3,0.075255]
[1751810308921,15.80493121,2563.4,2563.3,0.075255]
[1751810309217,11.90391685,2563.4,2563.3,0.075255]
[1751810310909,26.35498574,2563.4,2563.3,0.075255]
[1751810311095,35.72798574,2563.4,2563.3,0.075255]
[1751810311418,36.52788574,2563.4,2563.3,0.075255]
[1751810311633,44.33788574,2563.4,2563.3,0.075255]
[1751810311792,5.25142549,2563.1,2563.0,0.02]
[1751810312122,24.57794234,2563.1,2563.0,0.02]
[1751810312690,15.73794234,2563.1,2563.0,0.02]
[1751810312890,26.93594234,2563.1,2563.0,0.02]
[1751810313322,26.93494234,2563.1,2563.0,0.02]
[1751810313820,15.73794234,2563.1,2563.0,0.02]
[1751810314129,26.93494234,2563.1,2563.0,0.02]
[1751810314698,26.93452915,2563.1,2563.0,0.02]
[1751810316810,18.09752915,2563.1,2563.0,0.02]
[1751810317009,21.68010366,2563.1,2563.0,0.02]
[1751810317202,25.58162915,2563.1,2563.0,0.02]
[1751810317508,25.58162667,2563.1,2563.0,0.02]
[1751810317708,26.13162667,2563.1,2563.0,0.02]
[1751810318298,26.1313828,2563.1,2563.0,0.02]
[1751810318942,12.84585731,2563.1,2563.0,0.02]
[1751810319247,0.48585731,2563.1,2563.0,0.02]
[1751810319551,0.1944,2563.0,2562.9,0.12796377]
[1751810319841,11.87125731,2563.0,2562.9,4.02979372]
[1751810320139,11.7491738,2563.0,2562.9,4.02979372]
[1751810320441,0.68024607,2563.0,2562.9,4.02979372]
[1751810320651,11.67684607,2563.0,2562.9,4.02979372]
[1751810320799,2.7237738,2563.0,2562.9,0.12796377]
[1751810321000,4.81545152,2563.0,2562.9,0.12796377]
[1751810321237,26.12653013,2563.0,2562.9,0.12796377]
[1751810321459,22.22485241,2563.0,2562.9,0.12796377]
[1751810321947,26.12653013,2563.0,2562.9,0.12796377]
[1751810322321,26.95033013,2563.0,2562.9,0.12796377]
[1751810323324,26.95033013,2563.0,2562.3,0.0815804]
[1751810323325,4.45259132,2562.4,2562.3,0.0815804]
[1751810323529,24.59194373,2562.4,2562.3,0.0815804]
[1751810323834,33.96694373,2562.4,2562.3,0.0815804]
[1751810324057,29.23685241,2562.4,2562.3,0.0815804]
[1751810324362,35.49844373,2562.4,2562.3,0.0815804]
[1751810324554,31.04585241,2562.4,2562.3,0.0815804]
[1751810325157,34.82636512,2562.4,2562.3,0.0815804]
[1751810325339,35.4984726,2562.4,2562.3,0.0815804]
[1751810326331,22.77088128,2562.4,2562.3,0.0815804]
[1751810326522,31.04388128,2562.4,2562.3,0.0815804]
[1751810326728,34.9464726,2562.4,2562.3,0.0815804]
[1751810326961,31.04388128,2562.4,2562.3,0.0815804]
[1751810327261,31.04393737,2562.4,2562.3,0.0815804]
[1751810327643,31.04293737,2562.4,2562.3,0.0815804]
[1751810328027,0.48593737,2562.4,2562.3,4.74432402]
[1751810328263,0.1944,2562.9,2562.6,3.90228674]
[1751810328562,11.66605057,2562.8,2562.5,3.9024346]
[1751810328725,0.36396306,2562.7,2562.3,1.0359804]
[1751810328927,9.0134,2562.6,2562.4,3.90250563]
[1751810329131,9.0134,2562.6,2562.4,3.90258768]
[1751810329434,0.1944,2562.6,2562.3,4.74431938]
[1751810329640,0.1944,2562.6,2562.4,3.90252013]
[1751810329849,0.1944,2562.6,2562.5,3.90243902]
[1751810330049,11.73652677,2562.6,2562.5,3.90243902]
[1751810330239,11.85861759,2562.6,2562.5,3.90243902]
[1751810330638,0.68061759,2562.6,2562.5,3.90243902]
[1751810330841,11.85861759,2562.6,2562.4,3.90253916]
[1751810331166,0.48621945,2562.5,2562.3,0.0815804]
[1751810331364,9.376,2563.1,2562.4,3.90259132]
[1751810331596,11.66248603,2563.0,2562.6,0.76]
[1751810331868,0.36439912,2562.9,2562.8,3.9019822]
[1751810332041,0.36439912,2562.9,2562.7,3.90213446]
[1751810332042,9.17939912,2562.9,2562.7,3.90198404]
[1751810332229,8.815,2562.9,2562.6,4.66227999]
[1751810332439,0.36447302,2562.8,2562.7,3.90207677]
[1751810333070,0.36447302,2562.8,2562.7,4.63638629]
[1751810333380,2.36,2563.0,2562.9,3.90182995]
[1751810333604,11.65962984,2563.0,2562.9,3.90182995]
[1751810333734,11.65962984,2563.0,2562.7,0.73430952]
[1751810333938,11.173,2563.0,2562.7,3.90213446]
[1751810334239,11.173,2563.0,2562.8,3.90192762]
[1751810334456,11.172,2562.9,2562.8,3.90192762]
[1751810334773,11.172,2562.9,2562.7,3.90209869]
[1751810335343,11.172,2562.9,2562.6,4.66227446]
[1751810335570,3.90118176,2563.4,2562.3,0.0815804]
[1751810335571,0.36467456,2562.8,2562.3,0.8601804]
[1751810335846,0.7651,2563.1,2562.5,3.9023457]
[1751810335847,0.3646852,2562.7,2562.5,3.9023457]
[1751810336039,11.169,2562.6,2562.4,3.90252284]
[1751810336286,8.809,2562.5,2562.3,0.8601804]
[1751810336444,0.48694597,2562.4,2562.3,0.0815804]
[1751810337688,4.38953729,2562.4,2562.3,0.0815804]
[1751810338090,4.93953729,2562.4,2562.3,0.0815804]
[1751810338465,14.93953729,2562.4,2562.3,0.0815804]
[1751810338662,15.3599257,2562.4,2562.3,0.0815804]
[1751810338867,15.35993637,2562.4,2562.3,0.0815804]
[1751810339166,24.73593637,2562.4,2562.3,0.0815804]
[1751810339987,36.66503637,2562.4,2562.3,0.0815804]
[1751810340398,36.66403637,2562.4,2562.3,0.0815804]
[1751810340772,25.50103637,2562.4,2562.3,0.0815804]
[1751810340969,35.89793637,2562.4,2562.3,0.0815804]
[1751810341585,20.83334505,2562.4,2562.3,0.0815804]
[1751810341770,9.86295664,2562.4,2562.3,0.0815804]
[1751810341971,21.02395664,2562.4,2562.3,0.0815804]
[1751810342202,21.02395664,2562.4,2562.3,0.0835804]
[1751810342586,0.48695664,2562.4,2562.3,4.79252402]
[1751810342764,2.5344,2562.8,2562.6,3.9022104]
[1751810342967,9.1650383,2562.7,2562.6,3.90228674]
[1751810343274,0.001,2562.9,2562.8,3.9019822]
[1751810343697,0.001,2562.9,2562.8,4.7081822]
[1751810344202,8.799,2562.9,2562.8,4.7081822]
[1751810344367,8.799,2562.9,2562.8,5.58865214]
[1751810345200,0.001,2562.9,2562.8,5.58865214]
[1751810345366,8.798,2562.9,2562.8,5.58865214]
[1751810345567,8.798,2562.9,2562.8,4.7081822]
[1751810345768,8.798,2562.9,2562.5,4.70849263]
[1751810346073,8.798,2562.9,2562.5,0.8062]
[1751810346074,0.1944,2562.8,2562.5,0.8062]
[1751810346390,0.1944,2562.7,2562.3,3.98621907]
[1751810346565,8.795,2562.6,2562.3,3.98621907]
[1751810346767,8.795,2562.6,2562.3,0.0835804]
[1751810346963,0.1944,2562.4,2562.3,0.0835804]
[1751810347199,8.795,2562.6,2562.3,4.0114029]
[1751810347200,8.9894,2562.6,2562.3,4.0114029]
[1751810347498,8.9894,2562.6,2562.3,0.1088044]
[1751810347795,0.36456235,2562.5,2562.3,0.1088044]
[1751810348163,0.1944,2562.4,2562.3,0.1088044]
[1751810348976,11.3254,2562.4,2562.3,0.1088044]
[1751810350974,13.29004,2562.4,2562.3,0.1088044]
[1751810351179,11.3254,2562.4,2562.3,0.1088044]
[1751810351505,0.1944,2562.4,2562.3,0.1088044]
[1751810351710,11.3224,2562.4,2562.3,0.1088044]
[1751810351888,11.3214,2562.4,2562.3,0.1088044]
[1751810352428,0.1944,2562.4,2562.3,0.1088044]
[1751810352726,11.3214,2562.4,2562.3,0.1088044]
[1751810353043,15.22399132,2562.4,2562.3,0.1088044]
[1751810353217,15.77399132,2562.4,2562.3,0.1088044]
[1751810353418,26.53879132,2562.4,2562.3,0.1088044]
[1751810355229,26.65692364,2562.4,2562.3,0.1088044]
[1751810356725,27.02131033,2562.4,2562.3,0.1088044]
[1751810357702,15.89831033,2562.4,2562.3,0.1088044]
[1751810357897,27.01831033,2562.4,2562.3,0.1088044]
[1751810358526,17.01831033,2562.4,2562.3,0.1088044]
[1751810358909,27.01831033,2562.4,2562.3,0.1088044]
[1751810360207,1.44571901,2562.4,2562.3,0.1088044]
[1751810360503,10.68091901,2562.4,2562.3,0.1088044]
[1751810360706,21.79791901,2562.4,2562.3,0.1088044]
[1751810360927,22.34791901,2562.4,2562.3,0.1088044]
[1751810361127,27.78779874,2562.4,2562.3,0.1088044]
[1751810361337,26.25051033,2562.4,2562.3,0.1088044]
[1751810361719,27.01531033,2562.4,2562.3,0.1088044]
[1751810361920,24.67531033,2562.4,2562.3,0.1088044]
[1751810362105,24.67531033,2562.4,2561.7,0.054878]
[1751810362106,5.21830534,2561.8,2561.7,0.054878]
[1751810362305,27.34166678,2561.8,2561.7,0.054878]
[1751810362744,26.97727929,2561.8,2561.7,0.054878]
[1751810362921,27.34136256,2561.8,2561.7,0.054878]
[1751810364036,27.34136256,2561.8,2561.1,0.054878]
[1751810364037,13.9044198,2561.2,2561.1,0.054878]
[1751810364250,0.48622669,2561.2,2561.1,0.054878]
[1751810364554,21.662,2561.2,2561.1,0.054878]
[1751810364715,26.94575728,2561.2,2561.1,0.054878]
[1751810364914,0.3638796,2561.2,2561.1,0.054878]
[1751810365111,11.112,2561.2,2561.1,0.054878]
[1751810365447,11.4758796,2561.2,2561.1,0.054878]